bitfinex/quotes_SOLUSD_20220212
["timestamp","ask_amount","ask_price","bid_price","bid_amount"]
[1644628000743,0.04664951,96.64,96.575,5.175]
[1644628000937,0.04664951,96.64,96.576,24.0155]
[1644628001139,0.04664951,96.64,96.58,15.5333]
[1644628001369,0.04664951,96.64,96.581,5.175]
[1644628001567,5.176,96.649,96.581,5.175]
[1644628001772,0.04664951,96.64,96.581,5.175]
[1644628001968,5.176,96.649,96.581,5.175]
[1644628002170,0.04664951,96.64,96.581,5.175]
[1644628002369,5.176,96.649,96.581,5.175]
[1644628002572,0.04664951,96.64,96.58,15.5333]
[1644628002772,5.175,96.639,96.58,15.5333]
[1644628003173,0.04664951,96.64,96.58,15.5333]
[1644628003370,5.175,96.639,96.58,15.5333]
[1644628003569,0.04664951,96.64,96.58,15.5333]
[1644628003771,5.175,96.639,96.58,15.5333]
[1644628003972,15.58034951,96.65,96.58,15.5333]
[1644628003973,0.04664951,96.64,96.58,15.5333]
[1644628004171,5.175,96.649,96.58,15.5333]
[1644628004374,0.04664951,96.64,96.58,15.5333]
[1644628004571,5.175,96.649,96.58,15.5333]
[1644628004774,0.04664951,96.64,96.576,24.0155]
[1644628004996,15.58174951,96.64,96.576,24.0155]
[1644628005178,5.175,96.639,96.576,24.0155]
[1644628005377,15.58174951,96.64,96.576,24.0155]
[1644628005578,15.5351,96.64,96.576,24.0155]
[1644628005784,0.04664951,96.64,96.576,24.0155]
[1644628005979,0.04664951,96.65,96.577,2.38366791]
[1644628006177,0.04664951,96.65,96.576,24.0155]
[1644628006478,5.175,96.649,96.576,24.0155]
[1644628006678,0.04664951,96.64,96.576,24.0155]
[1644628007079,5.175,96.639,96.576,24.0155]
[1644628007378,0.04664951,96.65,96.576,24.0155]
[1644628007576,5.175,96.649,96.576,24.0155]
[1644628007777,15.58204951,96.64,96.576,24.0155]
[1644628008177,5.175,96.639,96.576,24.0155]
[1644628008677,5.175,96.639,96.577,2.38366791]
[1644628008880,0.04664951,96.65,96.58,30.5534]
[1644628009090,0.04664951,96.65,96.581,5.175]
[1644628009285,0.04664951,96.68,96.584,1.42678068]
[1644628009585,0.04664951,96.66,96.59,1.42678068]
[1644628009785,0.04664951,96.67,96.6,30.5487]
[1644628009986,15.57224951,96.7,96.6,30.5487]
[1644628010185,0.04664951,96.66,96.601,5.173]
[1644628010386,0.04664951,96.69,96.602,39.02370303]
[1644628010586,0.04664951,96.69,96.602,41.40737094]
[1644628010788,0.04664951,96.69,96.603,22.948]
[1644628010990,0.04664951,96.69,96.603,25.33166791]
[1644628011189,0.04664951,96.7,96.604,2.38366791]
[1644628011391,0.04664951,96.68,96.604,2.38366791]
[1644628011691,0.04664951,96.7,96.61,15.5245]
[1644628011909,0.04664951,96.67,96.62,15.02]
[1644628012094,0.04664951,96.69,96.62,15.02]
[1644628012292,0.04664951,96.7,96.62,15.02]
[1644628012508,0.04664951,96.7,96.621,23.6271]
[1644628012713,5.172,96.699,96.621,23.6271]
[1644628012916,0.04664951,96.69,96.621,23.6271]
[1644628013313,5.173,96.689,96.621,23.6271]
[1644628013517,0.04664951,96.7,96.621,23.6271]
[1644628013717,5.172,96.699,96.621,23.6271]
[1644628013917,0.04664951,96.69,96.621,23.6271]
[1644628014416,5.173,96.689,96.621,23.6271]
[1644628014614,0.04664951,96.7,96.621,23.6271]
[1644628014815,15.5271,96.69,96.63,15.5261]
[1644628015016,15.5271,96.69,96.631,37.10586566]
[1644628015216,5.172,96.689,96.631,37.10586566]
[1644628016818,21.83414838,96.679,96.631,37.10586566]
[1644628017017,15.5289,96.68,96.631,37.10586566]
[1644628017818,15.57384951,96.69,96.631,37.10586566]
[1644628018019,0.04664951,96.7,96.631,39.48953357]
[1644628018220,0.04664951,96.69,96.632,24.074]
[1644628018418,0.04664951,96.7,96.632,24.074]
[1644628018818,15.57234951,96.7,96.632,24.074]
[1644628019219,5.172,96.699,96.632,24.074]
[1644628021228,15.5273,96.69,96.632,24.074]
[1644628021533,5.172,96.689,96.632,24.074]
[1644628023926,15.5273,96.69,96.632,24.074]
[1644628024127,15.57394951,96.69,96.632,24.074]
[1644628024726,15.5273,96.69,96.632,24.074]
[1644628024927,5.172,96.689,96.632,24.074]
[1644628025533,5.172,96.689,96.631,37.10586566]
[1644628025931,15.5273,96.69,96.631,37.10586566]
[1644628026131,15.57394951,96.69,96.631,37.10586566]
[1644628027042,0.04664951,96.69,96.631,37.10586566]
[1644628027234,15.57224951,96.7,96.632,27.20336791]
[1644628027435,0.04664951,96.69,96.632,27.20336791]
[1644628027636,15.57224951,96.7,96.633,2.38366791]
[1644628027834,0.04664951,96.69,96.633,7.55566791]
[1644628028035,15.57224951,96.7,96.633,7.55566791]
[1644628028236,0.04664951,96.69,96.634,2.38366791]
[1644628028438,15.57224951,96.7,96.635,5.172]
[1644628028636,0.04664951,96.69,96.635,5.172]
[1644628028839,15.57224951,96.7,96.635,7.55566791]
[1644628029039,0.04664951,96.69,96.635,2.38366791]
[1644628029239,15.57224951,96.7,96.636,5.172]
[1644628029437,0.04664951,96.69,96.636,5.172]
[1644628029638,15.57224951,96.7,96.635,2.38366791]
[1644628029837,0.04664951,96.69,96.633,5.172]
[1644628030038,15.57224951,96.7,96.633,5.172]
[1644628030240,0.04664951,96.69,96.633,5.172]
[1644628030438,5.172,96.699,96.633,5.172]
[1644628030639,0.04664951,96.69,96.633,5.172]
[1644628030838,5.172,96.699,96.64,15.5245]
[1644628031040,0.04664951,96.69,96.641,5.172]
[1644628031257,0.04664951,96.7,96.641,5.172]
[1644628031460,0.61005882,96.71,96.641,5.172]
[1644628031658,0.56340931,96.71,96.642,2.38366791]
[1644628031861,0.56340931,96.71,96.643,5.171]
[1644628032059,0.56340931,96.71,96.644,22.957]
[1644628032259,0.56340931,96.71,96.645,5.171]
[1644628032758,0.56340931,96.71,96.65,15.5213]
[1644628032957,0.61005882,96.71,96.651,5.171]
[1644628033161,0.56340931,96.71,96.651,5.171]
[1644628033357,0.56340931,96.71,96.645,5.171]
[1644628034259,0.56340931,96.71,96.646,2.38366791]
[1644628034459,0.56340931,96.71,96.647,5.171]
[1644628034860,0.56340931,96.71,96.66,15.5214]
[1644628035062,0.56340931,96.71,96.661,44.46588809]
[1644628036860,0.56340931,96.71,96.67,15.5196]
[1644628037062,0.04664951,96.73,96.67,24.9096]
[1644628037262,0.04664951,96.73,96.671,2.38366791]
[1644628037460,0.04664951,96.73,96.67,9.39]
[1644628038065,15.5176,96.75,96.681,24.0]
[1644628038263,15.6871,96.79,96.681,24.0]
[1644628038264,5.168,96.767,96.682,5.168]
[1644628038465,5.168,96.779,96.683,24.3739]
[1644628038664,5.168,96.779,96.684,6.59478068]
[1644628038864,5.168,96.788,96.688,1.42678068]
[1644628039064,5.168,96.788,96.7,15.02]
[1644628039269,5.168,96.788,96.71,15.02]
[1644628039466,23.0585,96.789,96.71,15.02]
[1644628039665,23.0585,96.789,96.711,5.167]
[1644628040267,23.0585,96.789,96.72,15.5104]
[1644628040566,23.0585,96.789,96.712,43.44324122]
[1644628040567,5.167,96.788,96.712,43.44324122]
[1644628041969,5.167,96.788,96.713,24.3837]
[1644628042869,5.167,96.788,96.714,2.38366791]
[1644628043071,23.0585,96.789,96.714,2.38366791]
[1644628043268,23.0585,96.789,96.713,24.3837]
[1644628043472,5.167,96.799,96.714,2.38366791]
[1644628043670,5.167,96.813,96.714,2.38366791]
[1644628043871,51.8607,96.839,96.715,29.9022]
[1644628044071,51.8607,96.839,96.73,15.02]
[1644628044274,51.3607,96.839,96.731,28.1474]
[1644628044674,51.3607,96.839,96.732,37.13886281]
[1644628044872,51.3607,96.839,96.733,5.166]
[1644628045074,51.3607,96.839,96.733,7.54966791]
[1644628045375,51.3607,96.839,96.75,15.5033]
[1644628045574,1.45101384,96.866,96.751,5.165]
[1644628045575,5.165,96.865,96.751,5.165]
[1644628045774,5.165,96.849,96.752,47.1817]
[1644628045977,43.16677841,96.864,96.753,46.71286387]
[1644628046381,5.164,96.863,96.753,49.09653178]
[1644628046574,5.164,96.863,96.754,2.38366791]
[1644628046778,15.5,96.86,96.77,15.5]
[1644628047083,5.164,96.859,96.771,44.91740191]
[1644628047274,5.164,96.859,96.771,39.75340191]
[1644628047876,33.03851169,96.849,96.771,39.75340191]
[1644628049278,5.164,96.848,96.771,39.75340191]
[1644628049877,5.164,96.849,96.772,5.164]
[1644628050981,15.5033,96.84,96.772,5.164]
[1644628051383,5.164,96.839,96.772,5.164]
[1644628051584,5.164,96.838,96.772,5.164]
[1644628051782,7.54766791,96.838,96.712,46.6402]
[1644628051986,15.5063,96.83,96.712,46.6402]
[1644628052182,30.5263,96.83,96.712,46.6402]
[1644628052382,42.91377554,96.829,96.713,36.65927817]
[1644628052584,66.18407554,96.829,96.713,36.65927817]
[1644628052783,2.38366791,96.828,96.713,36.65927817]
[1644628052985,5.166,96.827,96.714,5.166]
[1644628053184,23.58,96.826,96.714,7.54966791]
[1644628053385,0.04306084,96.82,96.714,7.54966791]
[1644628053586,5.167,96.819,96.714,2.38366791]
[1644628053786,15.5108,96.8,96.714,2.38366791]
[1644628053986,0.04306084,96.79,96.714,2.38366791]
[1644628054188,5.167,96.789,96.713,36.65927817]
[1644628054385,0.04306084,96.78,96.713,36.65927817]
[1644628054589,5.168,96.779,96.713,36.65927817]
[1644628054888,15.5147,96.77,96.677,5.168]
[1644628055086,15.55776084,96.77,96.677,5.168]
[1644628055386,5.168,96.769,96.661,7.55166791]
[1644628055586,2.38366791,96.769,96.661,7.55166791]
[1644628055787,37.74777554,96.768,96.663,39.4639078]
[1644628055986,37.74777554,96.768,96.664,5.168]
[1644628056285,52.44024994,96.75,96.67,15.5169]
[1644628056487,0.04306084,96.74,96.67,15.5169]
[1644628056686,0.04306084,96.74,96.671,2.38366791]
[1644628057091,0.04306084,96.74,96.665,45.8456]
[1644628057092,5.17,96.739,96.665,45.8456]
[1644628057289,15.522,96.73,96.664,5.168]
[1644628057516,0.04306084,96.74,96.666,2.38366791]
[1644628057914,0.04306084,96.74,96.664,5.168]
[1644628058115,5.17,96.739,96.664,5.168]
[1644628058316,0.04306084,96.73,96.665,2.38366791]
[1644628058816,0.04306084,96.74,96.665,2.38366791]
[1644628059416,0.04306084,96.76,96.666,28.5143]
[1644628059619,0.04306084,96.73,96.666,28.5143]
[1644628059817,0.04306084,96.75,96.67,30.5368]
[1644628060019,0.04306084,96.76,96.671,5.17]
[1644628060219,5.17,96.776,96.671,5.17]
[1644628060220,0.04306084,96.74,96.672,1.42678068]
[1644628060418,0.04306084,96.75,96.677,1.42678068]
[1644628060618,0.04306084,96.77,96.691,35.21251224]
[1644628060822,0.04306084,96.74,96.692,5.168]
[1644628061019,0.04306084,96.76,96.692,5.168]
[1644628063418,0.04306084,96.76,96.7,15.5137]
[1644628063621,0.04306084,96.76,96.701,5.168]
[1644628063820,5.168,96.759,96.691,35.21251224]
[1644628064019,15.55896084,96.76,96.691,35.21251224]
[1644628064219,0.04306084,96.76,96.692,5.168]
[1644628065220,0.04306084,96.76,96.692,7.55166791]
[1644628065421,0.04306084,96.78,96.692,7.55166791]
[1644628065622,0.04306084,96.79,96.692,7.55166791]
[1644628065821,0.04306084,96.77,96.692,7.55166791]
[1644628066024,0.04306084,96.78,96.691,36.63929292]
[1644628066222,0.04306084,96.76,96.691,35.21251224]
[1644628066524,28.72037768,96.778,96.691,35.21251224]
[1644628066525,28.72037768,96.778,96.7,15.5132]
[1644628066723,0.04306084,96.77,96.7,15.5132]
[1644628067726,5.168,96.769,96.7,15.5132]
[1644628068628,4.168,96.769,96.7,15.5132]
[1644628069428,4.168,96.769,96.701,5.168]
[1644628069831,0.04306084,96.78,96.701,5.168]
[1644628070131,5.168,96.779,96.71,15.5119]
[1644628070330,0.04306084,96.77,96.71,15.5119]
[1644628070531,0.04306084,96.78,96.72,15.02]
[1644628070734,5.167,96.779,96.721,5.167]
[1644628070933,5.167,96.779,96.722,44.11274351]
[1644628071131,5.167,96.789,96.722,44.11274351]
[1644628071334,0.04306084,96.79,96.722,44.11274351]
[1644628071732,5.167,96.789,96.722,44.11274351]
[1644628072336,5.167,96.789,96.759,4.9308637]
[1644628072741,15.55106084,96.81,96.759,4.9308637]
[1644628072941,5.166,96.809,96.759,14.6908637]
[1644628073546,5.166,96.809,96.76,42.50037624]
[1644628073746,15.508,96.81,96.76,42.50037624]
[1644628075051,5.166,96.809,96.76,42.50037624]
[1644628076468,15.508,96.81,96.76,42.50037624]
[1644628078075,5.166,96.819,96.76,42.50037624]
[1644628078274,15.54956084,96.82,96.76,42.50037624]
[1644628079478,5.165,96.819,96.76,42.50037624]
[1644628081886,0.04306084,96.82,96.76,42.50037624]
[1644628084286,0.04306084,96.82,96.809,4.9308637]
[1644628084489,5.165,96.819,96.809,4.9308637]
[1644628084787,5.164,96.827,96.81,3.33828113]
[1644628084990,5.164,96.829,96.81,3.33828113]
[1644628085188,15.5048,96.83,96.81,3.33828113]
[1644628086987,5.164,96.845,96.81,3.33828113]
[1644628087289,5.163,96.856,96.81,3.33828113]
[1644628087689,5.163,96.859,96.81,3.33828113]
[1644628088088,0.04306084,96.86,96.81,3.33828113]
[1644628088286,5.163,96.859,96.81,3.33828113]
[1644628088487,0.04306084,96.86,96.81,3.33828113]
[1644628088788,15.5014,96.85,96.81,3.33828113]
[1644628089488,15.5014,96.85,96.809,4.9308637]
[1644628089688,5.163,96.849,96.809,4.9308637]
[1644628089888,5.163,96.857,96.809,4.9308637]
[1644628090691,15.5058,96.84,96.809,4.9308637]
[1644628092091,15.5058,96.84,96.809,4.4308637]
[1644628092292,15.5058,96.84,96.803,37.40817497]
[1644628092491,15.5058,96.84,96.753,5.163]
[1644628092690,0.04306084,96.83,96.753,5.163]
[1644628092893,15.54826084,96.83,96.753,5.163]
[1644628093694,15.54826084,96.83,96.754,44.56287117]
[1644628093992,15.54826084,96.83,96.755,5.165]
[1644628095594,15.54826084,96.83,96.756,2.38366791]
[1644628095795,15.54826084,96.83,96.757,5.165]
[1644628096195,15.54826084,96.83,96.755,5.165]
[1644628096598,5.165,96.829,96.755,5.165]
[1644628097295,5.165,96.829,96.76,15.5043]
[1644628097495,15.54826084,96.83,96.76,15.5043]
[1644628097696,5.165,96.829,96.76,15.5043]
[1644628098898,0.04306084,96.83,96.761,5.165]
[1644628099101,0.04306084,96.83,96.77,15.5015]
[1644628099498,0.04306084,96.83,96.771,5.165]
[1644628099698,22.6481,96.839,96.771,5.165]
[1644628099898,0.04306084,96.83,96.772,46.28547767]
[1644628100098,22.6481,96.839,96.773,5.164]
[1644628100299,0.04306084,96.83,96.773,5.164]
[1644628100501,22.6481,96.839,96.773,5.164]
[1644628100800,0.04306084,96.83,96.773,5.164]
[1644628100999,22.6481,96.839,96.773,5.164]
[1644628101200,0.04306084,96.83,96.773,5.164]
[1644628101399,22.6481,96.839,96.773,5.164]
[1644628101799,22.6481,96.839,96.774,2.38366791]
[1644628102201,0.04306084,96.84,96.774,2.38366791]
[1644628102401,5.165,96.844,96.781,24.0]
[1644628102600,5.164,96.869,96.781,24.0]
[1644628102802,1.45101384,96.881,96.782,2.38366791]
[1644628103005,46.66055966,96.886,96.788,41.97002806]
[1644628103301,46.66055966,96.886,96.8,15.02]
[1644628103500,46.66055966,96.886,96.801,22.652]
[1644628103800,46.66055966,96.886,96.801,25.03566791]
[1644628104002,46.66055966,96.886,96.801,22.652]
[1644628104201,40.51524715,96.885,96.801,22.652]
[1644628104602,12.50884715,96.884,96.801,22.652]
[1644628104803,15.4968,96.88,96.801,22.652]
[1644628105004,5.163,96.879,96.801,22.652]
[1644628105203,5.163,96.883,96.801,22.652]
[1644628105608,22.8444,96.885,96.801,22.652]
[1644628105907,12.50306935,96.882,96.801,22.652]
[1644628106415,12.50306935,96.884,96.801,22.652]
[1644628106609,5.162,96.884,96.801,22.652]
[1644628106807,15.4988,96.87,96.801,22.652]
[1644628107012,5.163,96.869,96.801,22.652]
[1644628108008,15.5002,96.86,96.801,22.652]
[1644628108211,5.163,96.859,96.788,41.97002806]
[1644628108409,24.4769,96.869,96.788,41.97002806]
[1644628108410,5.163,96.868,96.788,41.97002806]
[1644628109010,12.48322835,96.867,96.788,41.97002806]
[1644628109211,5.163,96.866,96.788,41.97002806]
[1644628109811,15.5017,96.85,96.788,41.97002806]
[1644628110029,36.62301981,96.849,96.788,41.97002806]
[1644628110233,5.164,96.848,96.788,41.97002806]
[1644628111133,5.164,96.867,96.789,2.38366791]
[1644628111331,24.4769,96.869,96.789,7.54666791]
[1644628111533,5.163,96.868,96.789,7.54666791]
[1644628112533,5.163,96.868,96.79,15.4992]
[1644628113933,65.9877668,96.869,96.791,5.163]
[1644628114733,15.5,96.86,96.791,5.163]
[1644628115234,5.163,96.859,96.788,41.97002806]
[1644628116439,63.24885277,96.85,96.788,41.97002806]
[1644628116635,5.164,96.849,96.788,41.97002806]
[1644628118536,46.31292238,96.848,96.788,41.97002806]
[1644628118738,15.503,96.84,96.788,41.97002806]
[1644628118937,5.164,96.839,96.788,41.97002806]
[1644628122544,5.164,96.847,96.788,41.97002806]
[1644628122744,5.164,96.849,96.788,41.97002806]
[1644628122945,5.163,96.868,96.809,4.4308637]
[1644628123346,5.163,96.868,96.81,37.86861993]
[1644628123654,12.50454582,96.867,96.81,35.48495202]
[1644628123850,5.163,96.866,96.81,35.48495202]
[1644628124049,24.2079,96.879,96.81,35.48495202]
[1644628124050,5.163,96.868,96.81,35.48495202]
[1644628124247,5.163,96.878,96.81,35.48495202]
[1644628124447,5.163,96.868,96.81,35.48495202]
[1644628125046,12.50934894,96.867,96.81,35.48495202]
[1644628125248,35.92614781,96.859,96.81,35.48495202]
[1644628125448,5.163,96.858,96.81,35.48495202]
[1644628127656,35.92614781,96.859,96.81,35.48495202]
[1644628127849,5.163,96.858,96.81,35.48495202]
[1644628128451,15.5,96.86,96.81,35.48495202]
[1644628130951,5.163,96.868,96.81,35.48495202]
[1644628134558,12.53452258,96.867,96.81,35.48495202]
[1644628134958,15.4985,96.87,96.81,35.48495202]
[1644628135358,12.53471086,96.868,96.81,35.48495202]
[1644628137861,5.163,96.867,96.81,35.48495202]
[1644628138062,43.03986585,96.866,96.81,35.48495202]
[1644628138266,5.163,96.865,96.81,35.48495202]
[1644628138662,15.4998,96.86,96.81,35.48495202]
[1644628138863,5.163,96.859,96.81,35.48495202]
[1644628141364,5.163,96.859,96.79,15.4994]
[1644628141566,12.53683326,96.858,96.79,15.4994]
[1644628141764,5.164,96.857,96.79,15.4994]
[1644628142169,5.164,96.857,96.785,5.163]
[1644628142170,15.5015,96.85,96.785,5.163]
[1644628142364,41.03910601,96.848,96.786,42.64176517]
[1644628142564,41.03910601,96.848,96.785,5.163]
[1644628142565,5.164,96.847,96.785,5.163]
[1644628142765,20.08450117,96.847,96.785,5.163]
[1644628143066,14.92050117,96.846,96.785,5.163]
[1644628143266,5.164,96.845,96.785,5.163]
[1644628143465,7.54766791,96.845,96.785,5.163]
[1644628143665,14.92050117,96.844,96.785,46.29261134]
[1644628143888,15.503,96.84,96.785,46.29261134]
[1644628144089,5.164,96.839,96.785,41.12961134]
[1644628144286,2.38366791,96.839,96.76,15.5051]
[1644628144490,2.38366791,96.839,96.751,22.6655]
[1644628144491,31.79646791,96.838,96.751,22.6655]
[1644628144888,14.92050117,96.837,96.752,5.165]
[1644628145086,5.165,96.836,96.752,5.165]
[1644628145290,20.08550117,96.836,96.753,47.92418025]
[1644628145488,2.38366791,96.835,96.754,5.165]
[1644628145688,15.5061,96.83,96.754,5.165]
[1644628145891,45.03815687,96.829,96.754,5.165]
[1644628146091,5.165,96.828,96.753,47.92418025]
[1644628146490,35.87073326,96.827,96.753,47.92418025]
[1644628146693,5.165,96.826,96.753,47.92418025]
[1644628146891,17.70183326,96.826,96.753,47.92418025]
[1644628147294,15.5089,96.81,96.753,47.92418025]
[1644628147493,50.02355659,96.809,96.753,47.92418025]
[1644628147692,44.85755659,96.809,96.753,47.92418025]
[1644628149196,15.5089,96.81,96.753,47.92418025]
[1644628149694,5.166,96.826,96.753,47.92418025]
[1644628149893,23.3339,96.827,96.754,5.165]
[1644628150093,34.96097302,96.826,96.754,5.165]
[1644628150695,15.5062,96.82,96.76,15.5058]
[1644628153798,5.165,96.819,96.76,15.5058]
[1644628154202,23.3339,96.827,96.761,7.54866791]
[1644628154397,5.166,96.818,96.753,47.92418025]
[1644628154598,5.165,96.826,96.753,47.92418025]
[1644628154999,44.28834239,96.825,96.753,47.92418025]
[1644628155198,15.5064,96.82,96.753,47.92418025]
[1644628155398,5.166,96.819,96.753,47.92418025]
[1644628157700,15.5079,96.81,96.753,47.92418025]
[1644628157901,47.70844855,96.809,96.753,47.92418025]
[1644628160005,5.166,96.808,96.753,47.92418025]
[1644628160809,5.166,96.809,96.753,47.92418025]
[1644628161812,48.59959971,96.809,96.753,47.92418025]
[1644628162310,43.43359971,96.809,96.753,47.92418025]
[1644628163715,48.59959971,96.809,96.753,47.92418025]
[1644628164614,43.43359971,96.809,96.753,47.92418025]
[1644628164914,15.5079,96.81,96.753,47.92418025]
[1644628168318,5.166,96.809,96.753,47.92418025]
[1644628171827,15.0079,96.81,96.753,47.92418025]
[1644628172429,30.6957,96.81,96.753,47.92418025]
[1644628172628,15.0079,96.81,96.753,47.92418025]
[1644628172828,5.166,96.82,96.754,2.38366791]
[1644628173030,1.45101384,96.833,96.755,23.7618]
[1644628173227,27.8945,96.846,96.764,1.42678068]
[1644628173428,22.7295,96.846,96.777,1.42678068]
[1644628173628,22.7295,96.846,96.779,1.42678068]
[1644628173833,22.7295,96.846,96.78,23.7618]
[1644628174234,22.7295,96.846,96.78,26.14546791]
[1644628174433,22.7295,96.846,96.78,23.7618]
[1644628174735,22.7295,96.846,96.78,39.2621]
[1644628176334,22.7295,96.846,96.8,15.5]
[1644628177034,22.7295,96.846,96.801,43.48427134]
[1644628179148,5.164,96.845,96.801,43.48427134]
[1644628179954,5.164,96.845,96.78,23.7618]
[1644628180852,37.13616391,96.844,96.781,38.54475928]
[1644628181051,5.164,96.843,96.781,38.54475928]
[1644628181851,15.5033,96.84,96.781,38.54475928]
[1644628182051,5.164,96.839,96.781,38.54475928]
[1644628182253,15.5033,96.84,96.781,38.54475928]
[1644628183855,15.5048,96.83,96.781,38.54475928]
[1644628184054,47.91771262,96.829,96.781,38.54475928]
[1644628184961,15.5064,96.82,96.771,5.164]
[1644628185156,15.5064,96.82,96.755,1.42678068]
[1644628185356,5.165,96.819,96.746,24.7993]
[1644628185656,5.165,96.827,96.746,24.7993]
[1644628185860,5.165,96.827,96.747,38.23718488]
[1644628186059,7.54866791,96.827,96.747,38.23718488]
[1644628186259,2.38366791,96.826,96.747,38.23718488]
[1644628186459,5.166,96.825,96.748,5.166]
[1644628186860,15.5092,96.81,96.748,5.166]
[1644628187060,5.166,96.809,96.748,5.166]
[1644628187961,15.5096,96.8,96.748,5.166]
[1644628188360,5.166,96.799,96.748,5.166]
[1644628188561,37.85767965,96.798,96.748,5.166]
[1644628188760,5.166,96.797,96.748,5.166]
[1644628189364,15.5113,96.79,96.748,5.166]
[1644628190966,15.5113,96.79,96.747,38.23718488]
[1644628193772,5.166,96.789,96.747,38.23718488]
[1644628194171,15.5113,96.79,96.747,38.23718488]
[1644628194372,15.5113,96.79,96.729,5.166]
[1644628194574,5.167,96.789,96.73,24.148]
[1644628194774,15.5146,96.78,96.73,24.148]
[1644628195274,5.167,96.779,96.73,24.148]
[1644628195471,5.167,96.779,96.731,47.7810465]
[1644628198074,15.5146,96.78,96.731,47.7810465]
[1644628199676,15.5146,96.78,96.732,5.167]
[1644628203582,44.82757529,96.779,96.732,5.167]
[1644628204202,15.5146,96.78,96.732,5.167]
[1644628205405,5.167,96.779,96.732,5.167]
[1644628206902,15.5146,96.78,96.731,47.7810465]
[1644628210204,15.5146,96.78,96.732,5.167]
[1644628211327,15.5161,96.77,96.72,0.024]
[1644628211512,5.168,96.769,96.72,0.024]
[1644628211709,5.167,96.778,96.715,1.42678068]
[1644628211912,5.168,96.768,96.715,1.42678068]
[1644628212111,43.10232216,96.767,96.72,0.024]
[1644628212309,23.8085,96.766,96.701,1.42678068]
[1644628212510,5.168,96.765,96.699,1.42678068]
[1644628212715,5.168,96.765,96.7,0.024]
[1644628212913,15.5164,96.76,96.701,1.42678068]
[1644628213113,5.168,96.759,96.702,38.69254227]
[1644628213312,5.168,96.765,96.702,38.69254227]
[1644628214514,15.5207,96.75,96.702,38.69254227]
[1644628214713,5.168,96.749,96.702,38.69254227]
[1644628214915,5.168,96.765,96.702,38.69254227]
[1644628215115,23.8085,96.766,96.702,38.69254227]
[1644628215614,15.5176,96.76,96.702,38.69254227]
[1644628215818,5.168,96.759,96.702,38.69254227]
[1644628216216,5.168,96.765,96.702,38.69254227]
[1644628216815,15.5207,96.75,96.702,38.69254227]
[1644628217217,15.5207,96.75,96.703,0.21389933]
[1644628217416,5.168,96.749,96.703,0.21389933]
[1644628217817,38.89394357,96.752,96.703,0.21389933]
[1644628218622,15.5211,96.74,96.703,0.21389933]
[1644628218819,5.168,96.739,96.703,0.21389933]
[1644628219222,30.1455,96.751,96.703,0.21389933]
[1644628219422,15.02,96.75,96.703,0.21389933]
[1644628219621,5.168,96.749,96.703,0.21389933]
[1644628220421,2.38366791,96.748,96.703,0.21389933]
[1644628220621,5.168,96.747,96.703,0.21389933]
[1644628220929,15.5225,96.73,96.691,0.21389933]
[1644628221124,40.79374071,96.729,96.691,0.21389933]
[1644628222126,35.62374071,96.729,96.691,0.21389933]
[1644628222322,15.5225,96.73,96.691,0.21389933]
[1644628223323,38.26789526,96.729,96.691,0.21389933]
[1644628223527,15.5242,96.72,96.691,0.21389933]
[1644628226730,39.9229,96.74,96.691,0.21389933]
[1644628226929,5.168,96.766,96.692,7.55166791]
[1644628227128,15.02,96.76,96.7,0.024]
[1644628227333,15.02,96.76,96.701,5.168]
[1644628227528,36.41431463,96.759,96.702,43.97220459]
[1644628227728,36.41431463,96.759,96.703,5.168]
[1644628227928,30.5377,96.76,96.703,5.168]
[1644628228128,15.5177,96.76,96.703,5.168]
[1644628228328,5.168,96.77,96.703,5.168]